Cogmind - Beta 9.5 @@@ ROGUE MODE // 2020.04.04 @ 18:38:52 // Winter2019/RPGLIKE Player: IAMCRAIG Result: Destroyed by YI-UF0 with YI-UF0's Doublenader Performance ------------- Evolutions (0) 0 Regions Visited (2) 400 Robots Destroyed (24) 120 Value Destroyed (447) 447 Prototype IDs (0) 0 Alien Tech Used (0) 0 Bonus (28) 28 TOTAL SCORE: 995 Bonus ------- Follower Combat Kills 28 Cogmind --------- Core Integrity 0/600 Matter 255/300 Energy 248/250 System Corruption 4% Temperature Cool (0) Movement Treading (160) Location -10/Mines Parts ------- > --- POWER (1) -------- Ion Engine > --- PROPULSION (2) --- Light Treads Wheel > --- UTILITY (4) ------ Improved Heat Sink Improved Terrain Scanner Seismic Analyzer Weapon Shielding > --- WEAPON (2) ------- Light Cannon Grenade Launcher > --- INVENTORY (3) ---- High-capacity Matter Pod (200) Grenade Launcher Peak State ------------ > --- POWER ------------ Ion Engine > --- PROPULSION ------- Light Treads Wheel > --- UTILITY ---------- Improved Heat Sink Improved Terrain Scanner Seismic Analyzer Weapon Shielding > --- WEAPON ----------- Light Cannon Grenade Launcher > --- INVENTORY -------- High-capacity Matter Pod Grenade Launcher [Rating: 12] Favorites ----------- Power Ion Engine Engine Ion Engine Propulsion Light Treads Treads Light Treads Wheel Wheel Utility Seismic Analyzer Device Improved Terrain Scanner Processor Seismic Analyzer Protection Weapon Shielding Weapon Beam Cannon Energy Cannon Beam Cannon Ballistic Gun Light Assault Rifle Ballistic Cannon Light Cannon Launcher Grenade Launcher Special Melee Weapon Datajack Build | -11 -10 -10 ------- Run | Scr Mat Min Slots Evolved 5 | 3 . 2 Power . | . . . Propulsion 1 | 1 . . Utility 3 | 1 . 2 Weapon 1 | 1 . . Parts Attached 16 | 8 6 2 Power 2 | 1 1 . Engine 2 | 1 1 . Core . | . . . Reactor . | . . . Propulsion 3 | 3 . . Treads 1 | 1 . . Leg . | . . . Wheel 2 | 2 . . Hover . | . . . Flight . | . . . Utility 5 | 2 1 2 Device 3 | 1 1 1 Storage . | . . . Processor 1 | 1 . . Hackware . | . . . Protection 1 | . . 1 Artifact . | . . . Weapon 6 | 2 4 . Energy Gun . | . . . Energy Cannon 1 | . 1 . Ballistic Gun 2 | 2 . . Ballistic Cannon 1 | . 1 . Launcher 1 | . 1 . Special Weapon . | . . . Impact Weapon . | . . . Slashing Weapon . | . . . Piercing Weapon . | . . . Special Melee Weapon 1 | . 1 . Unidentified Prototypes . | . . . Parts Lost . | . . . Power . | . . . Propulsion . | . . . Utility . | . . . Weapon . | . . . Highest Loss Streak . | . . . Average Slot Usage (%) 99 | . 100 97 Engine 13 | . 14 11 Treads 13 | . 14 11 Wheel 13 | . 14 11 Device 16 | . 14 24 Processor 13 | . 14 11 Energy Cannon 8 | . 10 . Ballistic Gun 8 | . 11 . Ballistic Cannon 3 | . 1 11 Launcher 2 | . . 11 Special Melee Weapon 3 | . 3 . Naked Turns . | . . . Heaviest Build 13 | 9 12 13 Greatest Support 25 | 16 20 25 Greatest Overweight (x) 1 | . 1 1 Average Overweight (x) . | . . . Largest Inventory Capacity 3 | 3 3 3 Average Capacity 2 | 2 3 3 Most Carried 3 | 3 3 3 Average Carried 2 | 1 2 2 Final Capacity 3 | 3 3 3 Final Carried 3 | 3 3 2 Class Distribution -------------------- 60% | Scavenger-Mutant 39% | Mutant Dominant Class ---------------- Scavenger-Mutant | -10/Materials Scavenger-Mutant | -10/Mines Resources | -11 -10 -10 ----------- Run | Scr Mat Min Matter Collected 713 | 223 409 81 Remotely . | . . . Salvage Created 665 | 72 541 52 Parts 52 | 7 36 9 Haulers Intercepted 2 | . 2 . Recyclers Shooed . | . . . Parts Field Recycled . | . . . Retrieved Matter . | . . . Parts Self-Destructed . | . . . Prevented . | . . . Kills | -11 -10 -10 ------- Run | Scr Mat Min Combat Hostiles Destroyed 15 | . 10 5 Guns 3 | . 3 . Cannons 9 | . 7 2 AOE 3 | . . 3 Classes Destroyed 5 | 1 4 . Tunneler 4 | 3 . 1 Hauler 2 | . 2 . Watcher 3 | . 3 . Swarmer 8 | . 3 5 Grunt 7 | . 7 . Best Kill Streak 3 | 3 3 2 Combat Bots Only 3 | . 3 2 Max Kills in Single Turn 2 | 1 2 2 Gunslinging 1 | . 1 . Exploded 2 | . . 2 Melee . | . . . Uniques/NPCs Destroyed . | . . . Combat | -11 -10 -10 -------- Run | Scr Mat Min Damage Taken 976 | . 622 354 Core 806 | . 520 286 Absorbed by Shields . | . . . Redirected to Core 532 | . 332 200 Core Remaining (%) 100 | 100 . . Volleys Fired 69 | 3 46 20 Largest 2 | 2 2 1 Hottest 95 | 40 95 35 Shots Fired 114 | 6 88 20 Gun 52 | 6 46 . Cannon 58 | . 42 16 Launcher 4 | . . 4 Special . | . . . Kinetic 72 | 6 50 16 Thermal 38 | . 38 . Explosive 4 | . . 4 Electromagnetic . | . . . Robot Hit Streak 9 | 4 6 9 Robot Miss Streak 3 | . 3 2 Penetration Max . | . . . Secondary Targets 2 | . 2 . Max Gunslinging Chain 1 | . 1 . Shots Hit Robots 68 | 4 52 12 Core Hits 37 | 3 25 9 Critical Hits 1 | 1 . . Critical Kills 1 | 1 . . Critical Parts Destroyed . | . . . Melee Attacks 3 | . 3 . Impact . | . . . Slashing . | . . . Piercing . | . . . Sneak Attacks 2 | . 2 . Combat Hostiles . | . . . Follow-up Attacks . | . . . Damage Inflicted 1204 | 52 775 377 Guns 230 | 52 178 . Cannons 787 | . 597 190 Explosions 181 | . . 181 Melee . | . . . Ramming 6 | . . 6 Kinetic 491 | 52 249 190 Thermal 526 | . 526 . Explosive 181 | . . 181 Electromagnetic . | . . . Impact . | . . . Slashing . | . . . Piercing . | . . . Highest Corruption 4 | . 4 4 Average Corruption 3 | . 2 4 Corruption Purged . | . . . Effects 16 | . 7 9 Message Errors 5 | . 3 2 Matter Fused 2 | . . 2 Energy Discharges 2 | . 1 1 Data Loss (minor) 4 | . 2 2 Targeting Errors 3 | . 1 2 Overload Shots . | . . . Overflow Damage 31 | . 15 16 Projectiles 15 | . 15 . Explosions 16 | . . 16 Melee . | . . . Knockbacks 2 | . . 2 Impact . | . . . Kinetic 2 | . . 2 Secondary . | . . . Self-Inflicted Damage 13 | . . 13 Shots 1 | . . 1 Rammed 3 | . . 3 Targets Rammed 3 | . . 3 Kicked . | . . . Crushed . | . . . Highest Temperature 258 | . 258 . Average Temperature 101 | . 101 . Received Heat Transfer 213 | . 213 . Siege Activations . | . . . Robots Corrupted . | . . . Combat Hostiles . | . . . Parts Fried . | . . . Impact Corruptions . | . . . Robots Melted . | . . . Combat Hostiles . | . . . Parts Melted 1 | . 1 . Heat Transferred 1110 | . 1110 . Parts Sabotaged . | . . . Parts Stolen . | . . . Parts Stripped . | . . . Power Chain Reactions . | . . . Missiles Intercepted . | . . . Alert | -11 -10 -10 ------- Run | Scr Mat Min Peak Influence 327 | 15 186 327 Average Influence 110 | 4 106 166 Maximum Alert Level 1 | . . 1 Low Security (%) 94 | 100 100 70 Level 1 5 | . . 29 Level 2 . | . . . Level 3 . | . . . Level 4 . | . . . Level 5 . | . . . High Security . | . . . Max Security . | . . . Squads Dispatched 1 | . 1 . Investigation . | . . . Extermination . | . . . Reinforcement 1 | . 1 . Assault . | . . . Garrison . | . . . Intercept . | . . . Construction Impeded . | . . . Haulers Reinforced . | . . . Stealth | -11 -10 -10 --------- Run | Scr Mat Min Distress Signals 1 | . 1 . Communications Jammed . | . . . Distress Signals . | . . . Times Spotted 27 | . 17 10 Peak Tracking Total 3 | . 3 3 Tactical Retreats 2 | . . 2 Traps | -11 -10 -10 ------- Run | Scr Mat Min Traps Triggered 3 | . 3 . Indirectly . | . . . Trap Hack Attempts 18 | . 18 . Triggered . | . . . Disarmed 3 | . 3 . Reprogrammed . | . . . Reused . | . . . Traps Extracted . | . . . Installed . | . . . Triggered . | . . . Machines | -11 -10 -10 ---------- Run | Scr Mat Min Machines Disabled 1 | . . 1 Max in Single Turn 1 | . . 1 Machines Sabotaged . | . . . Garrisons Compromised . | . . . Overloaded Fab Kills . | . . . Fab Network Shutdowns . | . . . Hacking | -11 -10 -10 --------- Run | Scr Mat Min Machines Accessed 6 | . 6 . Terminals 3 | . 3 . Fabricators . | . . . Repair Stations 1 | . 1 . Recycling Units 2 | . 2 . Scanalyzers . | . . . Garrison Access . | . . . Total Hacks 18 | . 18 . Successful 14 | . 14 . Failed 4 | . 4 . Catastrophic . | . . . Database Lockouts . | . . . Manual 10 | . 10 . Terminals 10 | . 10 . Fabricators . | . . . Repair Stations 3 | . 3 . Recycling Units 5 | . 5 . Scanalyzers . | . . . Garrison Access . | . . . Terminal Hacks 4 | . 4 . Robot Analysis 2 | . 2 . Alert Level 1 | . 1 . Locate Traps 1 | . 1 . Fabricator Hacks . | . . . Repair Station Hacks 1 | . 1 . Scan Component 1 | . 1 . Recycling Unit Hacks 3 | . 3 . Report Inventory 2 | . 2 . Retrieve Components 1 | . 1 . Scanalyzer . | . . . Garrison Access Hacks . | . . . Unauthorized Hacks 13 | . 13 . Terminals 4 | . 4 . Botnet 3 | . 3 . Operators 1 | . 1 . Fabricators . | . . . Repair Stations . | . . . Recycling Units 2 | . 2 . Reject 1 | . 1 . Mask 1 | . 1 . Scanalyzers . | . . . Garrison Access . | . . . Data Cores Recovered . | . . . Used . | . . . Hacking Detections 5 | . 5 . Full Trace Events . | . . . Feedback Events . | . . . Feedback Blocked . | . . . Robot Schematics Acquired . | . . . Robots Built . | . . . Matter . | . . . Time . | . . . Total Robot Build Rating . | . . . Part Schematics Acquired . | . . . Parts Built . | . . . Matter . | . . . Time . | . . . Total Part Build Rating . | . . . Parts Repaired . | . . . Time . | . . . Parts Recycled . | . . . Recycled Matter . | . . . Retrieved Matter . | . . . Retrieved Components 2 | . 2 . Parts Scanalyzed . | . . . Part Schematics Acquired . | . . . Parts Damaged . | . . . Bothacking | -11 -10 -10 ------------ Run | Scr Mat Min Used RIF Installer . | . . . Robots Hacked 2 | . 2 . Non-combat 2 | . 2 . Combat . | . . . Robot Hacks Applied 2 | . 2 . parse_system 1 | . 1 . no_distress 1 | . 1 . Relay Couplers Released . | . . . Robots Rewired . | . . . Allies Hacked . | . . . Hacks Repelled . | . . . Allies | -11 -10 -10 -------- Run | Scr Mat Min Total Allies 3 | . . 3 Largest Group 3 | . . 3 Highest-Rated Group 40 | . . 40 Highest-Rated Ally 16 | . . 16 Total Orders . | . . . Ally Attacks 12 | . . 12 Total Damage 116 | . . 116 Kills 4 | . . 4 Allies Corrupted . | . . . Allies Melted . | . . . Intel | -11 -10 -10 ------- Run | Scr Mat Min Robot Analysis Total 2 | . 2 . Derelict Logs Recovered 1 | . . 1 Drone Launches . | . . . Drone Recoveries . | . . . Exploration | -11 -10 -10 ------------- Run | Scr Mat Min Turns Passed 1126 | 97 803 226 Spaces Moved 963 | 79 720 164 Core 1 | 1 . . Treads 88 | . 41 47 Legs . | . . . Wheels 874 | 78 679 117 Hover . | . . . Flight . | . . . Fastest Speed 50 | 50 80 80 Average Speed 89 | 91 85 103 Slowest Speed 160 | 100 160 160 Overloaded Moves . | . . . Propulsion Burnouts . | . . . Robots Hopped . | . . . Cave-ins Triggered . | . . . Exploration Rate (%) 49 | 4 96 49 Regions Visited 2 Branch Regions 1 Pre-discovered Areas . | . . . Known Exits Taken . | . . . Unknown Exits Taken 2 | 1 1 . Scrap Searched . | . . . Spaces Dug 10 | . . 10 Terrain Destroyed 33 | . . 33 Melee . | . . . Projectile . | . . . AOE 33 | . . 33 Actions | -11 -10 -10 --------- Run | Scr Mat Min Total 1123 | 96 827 200 Wait 17 | . 9 8 Move 961 | 78 719 164 Hop . | . . . Pick Up 12 | 5 6 1 Fast Attach 10 | 6 4 . Attach 3 | 1 . 2 Detach . | . . . Swap 3 | 1 2 . Drop 13 | 2 11 . Fire 69 | 3 46 20 Melee 3 | . 3 . Ram . | . . . Kick . | . . . Crush 3 | . . 3 Escape Stasis . | . . . Rewire . | . . . Trap 18 | . 18 . Miscellaneous 11 | . 9 2 Route ------- -11/Scrapyard -10/Materials (discovered 5 exits: [*Mat x3] / [*Min x2]) -10/Mines (discovered 1 exit: [*Mat]) History --------- Turn | Location | Event 3 | -11/Scrapyard | Upgraded with Propulsion slot (x1) 3 | -11/Scrapyard | Upgraded with Utility slot (x1) 3 | -11/Scrapyard | Upgraded with Weapon slot (x1) 23 | -11/Scrapyard | Discovered new exit (range 15) 98 | -11/Scrapyard | Entered Materials 206 | -10/Materials | Discovered new exit (range 15) 305 | -10/Materials | Build established: Mutant 367 | -10/Materials | Discovered new exit (range 5) 534 | -10/Materials | Core integrity fell below 50% 558 | -10/Materials | Discovered new exit (range 12) 694 | -10/Materials | Discovered new exit (range 16) 744 | -10/Materials | Build established: Scavenger-Mutant 751 | -10/Materials | Discovered new exit (range 13) 901 | -10/Materials | Entered Mines 903 | -10/Mines | Reached level 2 905 | -10/Mines | Assisted by bots powering up and referring to "LRC-V3" 906 | -10/Mines | Upgraded with Utility slot (x1) 966 | -10/Mines | Learned Materials terminal intel 1026 | -10/Mines | Discovered new exit (range 15) 1077 | -10/Mines | Reached level 3 1078 | -10/Mines | Upgraded with Utility slot (x1) 1119 | -10/Mines | Core integrity fell below 20% 1127 | -10/Mines | Destroyed by YI-UF0 with YI-UF0's Doublenader Last Messages --------------- 01099_ Slammed into U-05 Engineer. 01100_ System corrupted: Energy discharge (-85). 01100_ U-05 Engineer builds a Wall. 01101_ Slammed into U-05 Engineer. 01105_ U-05 Engineer builds a Wall. 01109_ U-05 Engineer lays Concrete. 01112_ U-05 Engineer builds a Wall. 01116_ U-05 Engineer lays Concrete. 01116_ YI-UF0: "BWOOM!" 01116_ U-05 Engineer destroyed. 01118_ U-05 Engineer builds a Wall. 01118_ Mercenary 1a destroyed. 01119_ System corrupted: Component data lost. 01120_ Trooper 1a destroyed. 01121_ The unstable cave ceiling collapses. 01122_ U-05 Engineer builds a Wall. 01125_ YI-UF0: "BAROOM!" 01125_ Trooper 1b destroyed. 01126_ U-05 Engineer lays Concrete. 01127_ U-05 Engineer builds a Wall. Map ----- +----------------------------------------------------+ | ?????????????????????????????????????????????????? | | ?????????????????????????????????????????????????? | | ?????????????????????????????????????????????????? | | ?????????????????????????????????????????????????? | | ?????????????????????????????????????????????????? | | ?????????????????????????????????????????????????? | | ?????????????????????????????????????????????????? | | ?????????????????????????????????????????????????? | | ?????????????????????????????????????????????????? | | ?????????????????????????????????????????????????? | | ??????????????????????#?#??#?#???????????????????? | | ????????????????????????#????????????????????????? | | ???????????????????????#?????#??#????????????????? | | ???????????????? ????????????????????????????????? | | ?????????????? #?????????????#????????????????? | | ?????????????? ##???????#????#?##??#??????????? | | ????????????? g ?????????#?? ?#??#?##?##?#??? | | ?????????????? ?#??#??#???# ?##?#??#?#?????? | | ??????????????? ??#?????? ?#????##?????#?? | | ???????????? ?? ###??? ??? ??#???#??#??#?#? | | ??????????? ? ? ?####?#? ? #?##??#???????? | | ??????????? # ## ####? ##?#????#??#?#? | | ??????????? %= # ### #??#?????????# | | ?????????## ?# ! < ? #???#??##??#? | | ?????????? ! # #?? ? ?#?#?#??####?# | | ?????????? ? ??## @ #??# ??##?###?## #?? | | ?????????? $ ## ####??#????#??# ### | | ?????????? ? ????#?# *% ############ #?# | | ?????????? ???###### ## =## #?? | | ????? ??? ?? ##????## # # ### ########## ## ##? | | ??????????##??####?######u#### ###??????# ## ## | | ?????????#?????????######[# # #?####### # | | ?????#?##?#?#?###??#*= = #???????#### | | ????????#??#??#?#??#=##[ #??#????##?## | | ??????????#???#?#?## ####### ## ? ? ?######## | | ?????????#?###?#####=###???# ?????##??# | | ????????? ???#?# * [=#?#### ###?????#?? | | ???????#??? ##??# """ ####### ???#??#??#? | | ?????????? ??##?# """ # #?#### #??#?? ###? | | ???????#?? ??#?# """ # ###### ###??# # | | ???????? ???????# # #### ###???? | | ???????? ????#### #### #####?# | | ???????? ##### ### ###?## | | ??????? # #########??# | | ???????#??? # ### ###### | | ??????#??????? ??# ### #? | | ????#??????? ????## ###?# #? ### | | ???????#????????### ### ##?### #?# #??## | | ?????? ????? ?????# ### ????# # #?# #?#### | | ?????????? ??? ???# #?### ???# #?# ##???## | +----------------------------------------------------+ Best States ------------- Heat Dissipation 39 Energy Generation 10 Energy Capacity 250 Matter Stores 300 Matter Capacity 300 Sight Range 16 Terrain Scan Range 16 Terrain Scan Density 60 Resistance: EX 20 Weapon Shielding 33 Evasion (%) 44 Recoil Reduction 1 Item Schematics ----------------- None Robot Schematics ------------------ None Fabricated ------------ Nothing Alien Tech Used ----------------- None Achievements -------------- None Challenges ------------ None RPGLIKE | -11 -10 -10 --------- Run | Scr Mat Min Levels Raised 2 | . . 2 XP Earned 6227 | 3000 1425 1802 XP Spent 5900 | 3000 . 2900 Upgrades 13 | 6 . 7 Propulsion Slot 1 | 1 . . Utility Slot 3 | 1 . 2 Weapon Slot 1 | 1 . . Mass Support 1 | . . 1 Inventory Capacity 3 | 3 . . EX Resistance % 4 | . . 4 Protomatter Created 62 | . 58 4 Integrity Restored 210 | . 174 36 Core 204 | . 168 36 Parts 6 | . 6 . Protomatter Decayed . | . . . Game ------ Seed LayeredCannonShield Manual? 0 Play Time 00:15:07 Cumulative 106.9 hours Start 2020.04.04 @ 18:21:42 End 2020.04.04 @ 18:38:52 Sessions 1 Manual Loads 0 Difficulty Rogue Special Mode Winter2019/RPGLIKE Game No. 39 Rogue 39 Adventurer 0 Explorer 0 Win Type - Total 1 Types 1/0/0/0/0/0/0 Lore% 49 Gallery% 62 Achievement% 58 Wizard Run 0 Options --------- ASCII 1 Keyboard 1 Movement Numpad Keybinds 0 Fullscreen 1 Font 16/SmallcapsGlow Map View 75x55 Tactical HUD 1 Map Filters NONE Filters NONE Steam 1 RUN: d95b3523-d0e4-4a18-892f-3c3cef625095